fUSD/lending_fUSD_20250320
["ID","MTS","AMOUNT","RATE_DAILY","PERIOD"]
[356477257,1742506305738,-1511.60403222,0.0005,2]
[356477258,1742506305747,-2429.00862841,0.0005,120]
[356477259,1742506305756,-3016.82944958,0.0005,30]
[356477260,1742506305765,-2622.78451551,0.0005,5]
[356477261,1742506305774,-1063.84457231,0.0005,120]
[356477262,1742506305783,-1052.85728795,0.0005,120]
[356477263,1742506305792,-5092.70675216,0.0005,120]
[356477264,1742506305802,-2250.05255601,0.0005,120]
[356477265,1742506305812,-2448.57447463,0.0005,120]
[356477266,1742506305822,-210.00424767,0.0005,2]
[356477267,1742506305831,-552.55956325,0.0005,120]
[356477268,1742506305839,-2931.999999,0.0005,120]
[356477269,1742506305849,-2829.03412944,0.0005,120]
[356477270,1742506305859,-489.31125357,0.0005,120]
[356477271,1742506305868,-2578.0,0.0005,120]
[356477272,1742506305879,-340.3769719,0.0005,120]
[356477273,1742506305889,-3275.38686622,0.0005,120]
[356477274,1742506305899,-365.74,0.00050036,2]
[356477275,1742506305910,-150.0,0.00050075,120]
[356477276,1742506305921,-280.9,0.00050136,7]
[356477277,1742506305931,-1249.38,0.00050136,120]
[356477278,1742506305940,-1000.0,0.00050136,120]
[356477279,1742506305949,-704.1,0.00050136,120]
[356477280,1742506305964,-500.0,0.00050136,120]
[356477281,1742506305973,-500.0,0.00050136,120]
[356477282,1742506305984,-2093.7,0.00050136,120]
[356477283,1742506305994,-1294.52,0.00050136,120]
[356477284,1742506306003,-805.3,0.00050136,120]
[356477285,1742506306012,-1740.46,0.00050136,120]
[356477286,1742506306021,-1204.72,0.00050136,120]
[356477287,1742506306030,-1605.43,0.00050136,120]
[356477288,1742506306039,-2366.34,0.00050136,120]
[356477289,1742506306048,-2058.24,0.00050136,120]
[356477290,1742506306057,-500.0,0.00050136,120]
[356477291,1742506306066,-1347.38,0.00050136,120]
[356477292,1742506306075,-1899.58,0.00050136,120]
[356477293,1742506306084,-1574.01,0.00050136,120]
[356477294,1742506306093,-3000.0,0.00050136,120]
[356477295,1742506306102,-2599.75,0.00050136,120]
[356477296,1742506306110,-1311.47,0.00050136,120]
[356477297,1742506306119,-1183.6,0.00050136,120]
[356477298,1742506306128,-1215.73,0.00050136,2]
[356477299,1742506306137,-642.45,0.00050136,7]
[356477300,1742506306146,-500.0,0.00050136,120]
[356477301,1742506306156,-579.59,0.00050136,120]
[356477302,1742506306167,-687.5,0.00050136,120]
[356477303,1742506306177,-500.0,0.00050136,120]
[356477304,1742506306186,-500.0,0.00050136,120]
[356477305,1742506306196,-500.0,0.00050136,120]
[356477306,1742506306205,-2414.38,0.00050136,120]
[356477307,1742506306215,-500.0,0.00050136,120]
[356477308,1742506306224,-445.45,0.00050136,120]
[356477309,1742506306234,-500.0,0.00050136,120]
[356477310,1742506306243,-500.0,0.00050136,120]
[356477311,1742506306252,-711.07,0.00050136,120]
[356477312,1742506306262,-500.0,0.00050136,120]
[356477313,1742506306271,-2861.11,0.00050136,120]
[356477314,1742506306281,-2613.79,0.00050136,120]
[356477315,1742506306291,-500.0,0.00050136,120]
[356477316,1742506306302,-1352.41,0.00050136,2]
[356477317,1742506306312,-500.0,0.00050136,120]
[356477318,1742506306322,-500.0,0.00050136,7]
[356477319,1742506306332,-439.01949157,0.00050136,120]
[356477320,1742506306341,-2727.58,0.00050136,120]
[356477321,1742506306352,-500.0,0.00050136,120]
[356477322,1742506306362,-554.02,0.00050136,120]
[356477323,1742506306372,-500.0,0.00050136,10]
[356477324,1742506306382,-2523.63,0.00050136,120]
[356477325,1742506306391,-500.0,0.00050136,120]
[356477326,1742506306401,-500.0,0.00050136,120]
[356477327,1742506306411,-500.0,0.00050136,120]
[356477328,1742506306420,-500.0,0.00050136,120]
[356477329,1742506306429,-500.0,0.00050136,120]
[356477330,1742506306439,-788.19,0.00050136,120]
[356477331,1742506306449,-793.78,0.00050136,120]
[356477332,1742506306458,-2731.28,0.00050136,120]
[356477333,1742506306467,-500.0,0.00050136,120]
[356477334,1742506306477,-500.0,0.00050136,120]
[356477335,1742506306487,-500.0,0.00050136,120]
[356477336,1742506306496,-500.0,0.00050136,120]
[356477337,1742506306505,-500.0,0.00050136,120]
[356477338,1742506306514,-500.0,0.00050136,120]
[356477339,1742506306524,-1903.57,0.00050136,120]
[356477340,1742506306535,-500.0,0.00050136,120]
[356477341,1742506306544,-500.0,0.00050136,120]
[356477342,1742506306554,-1749.23,0.00050136,120]
[356477343,1742506306563,-2471.83,0.00050136,120]
[356477344,1742506306572,-500.0,0.00050136,120]
[356477345,1742506306582,-500.0,0.00050136,120]
[356477346,1742506306591,-500.0,0.00050136,120]
[356477347,1742506306601,-500.0,0.00050136,120]
[356477348,1742506306610,-500.0,0.00050136,120]
[356477349,1742506306619,-1951.54,0.00050136,120]
[356477350,1742506306628,-584.57,0.00050136,120]
[356477351,1742506306638,-500.0,0.00050136,120]
[356477352,1742506306647,-631.56730801,0.00050136,120]
[356477353,1742506306657,-500.0,0.00050136,120]
[356477354,1742506306667,-500.0,0.00050136,120]
[356477355,1742506306677,-2426.87,0.00050136,120]
[356477356,1742506306686,-500.0,0.00050136,120]
[356477357,1742506306695,-500.0,0.00050136,120]
[356477358,1742506306704,-500.0,0.00050136,120]
[356477359,1742506306713,-500.0,0.00050136,120]
[356477360,1742506306723,-246.32,0.00050136,120]
[356477361,1742506306732,-707.59,0.00050136,120]
[356477362,1742506306741,-500.0,0.0005041,120]
[356477363,1742506306751,-280.9,0.0005041,7]
[356477364,1742506306760,-1249.38,0.0005041,120]
[356477365,1742506306769,-764.43105431,0.0005041,120]
[356477366,1742506306777,-704.1,0.0005041,120]
[356477367,1742506306787,-500.0,0.0005041,120]
[356477368,1742506306795,-500.0,0.0005041,120]
[356477369,1742506306804,-2093.7,0.0005041,120]
[356477370,1742506306813,-1294.52,0.0005041,120]
[356477371,1742506306822,-805.3,0.0005041,120]
[356477372,1742506306831,-1740.46,0.0005041,120]
[356477373,1742506306840,-1204.72,0.0005041,120]
[356477374,1742506306849,-1605.43,0.0005041,120]
[356477375,1742506306858,-2366.34,0.0005041,120]
[356477376,1742506306867,-2058.24,0.0005041,120]
[356477377,1742506306875,-500.0,0.0005041,120]
[356477378,1742506306884,-1347.38,0.0005041,120]
[356477379,1742506306894,-1899.58,0.0005041,120]
[356477380,1742506306903,-1574.01,0.0005041,120]
[356477381,1742506306912,-3000.0,0.0005041,120]
[356477382,1742506306921,-2599.75,0.0005041,120]
[356477383,1742506306930,-1311.47,0.0005041,120]
[356477384,1742506306939,-1183.6,0.0005041,120]
[356477385,1742506306948,-1215.73,0.0005041,2]
[356477386,1742506306962,-642.45,0.0005041,7]
[356477387,1742506306971,-500.0,0.0005041,120]
[356477388,1742506306980,-579.59,0.0005041,120]
[356477389,1742506306989,-687.5,0.0005041,120]
[356477390,1742506307001,-500.0,0.0005041,120]
[356477391,1742506307010,-500.0,0.0005041,120]
[356477392,1742506307019,-500.0,0.0005041,120]
[356477393,1742506307029,-2414.38,0.0005041,120]
[356477394,1742506307039,-500.0,0.0005041,120]
[356477395,1742506307049,-569.86,0.0005041,120]
[356477396,1742506307058,-500.0,0.0005041,120]
[356477397,1742506307068,-711.07,0.0005041,120]
[356477398,1742506307077,-500.0,0.0005041,120]
[356477399,1742506307086,-2861.11,0.0005041,120]
[356477400,1742506307095,-2613.79,0.0005041,120]
[356477401,1742506307104,-500.0,0.0005041,120]
[356477402,1742506307113,-1352.41,0.0005041,2]
[356477403,1742506307126,-500.0,0.0005041,120]
[356477404,1742506307135,-500.0,0.0005041,7]
[356477405,1742506307145,-2727.58,0.0005041,120]
[356477406,1742506307154,-329.87,0.0005041,120]
[356477407,1742506307164,-554.02,0.0005041,120]
[356477408,1742506307173,-500.0,0.0005041,10]
[356477409,1742506307183,-2523.63,0.0005041,120]
[356477410,1742506307193,-500.0,0.0005041,120]
[356477411,1742506307202,-500.0,0.0005041,120]
[356477412,1742506307211,-500.0,0.0005041,120]
[356477413,1742506307220,-228.43,0.0005041,120]
[356477414,1742506307229,-500.0,0.0005041,120]
[356477415,1742506307238,-788.19,0.0005041,120]
[356477416,1742506307248,-793.78,0.0005041,120]
[356477417,1742506307258,-2731.28,0.0005041,120]
[356477418,1742506307267,-642.73,0.0005041,120]
[356477419,1742506307276,-500.0,0.0005041,120]
[356477420,1742506307285,-500.0,0.0005041,120]
[356477421,1742506307294,-500.0,0.0005041,120]
[356477422,1742506307303,-500.0,0.0005041,120]
[356477423,1742506307312,-500.0,0.0005041,120]
[356477424,1742506307321,-1903.57,0.0005041,120]
[356477425,1742506307331,-500.0,0.0005041,120]
[356477426,1742506307340,-500.0,0.0005041,120]
[356477427,1742506307349,-1749.23,0.0005041,120]
[356477428,1742506307359,-2471.83,0.0005041,120]
[356477429,1742506307369,-500.0,0.0005041,120]
[356477430,1742506307377,-500.0,0.0005041,120]
[356477431,1742506307387,-500.0,0.0005041,120]
[356477432,1742506307396,-500.0,0.0005041,120]
[356477433,1742506307405,-551.72709047,0.0005041,120]
[356477434,1742506307414,-1951.54,0.0005041,120]
[356477435,1742506307423,-584.57,0.0005041,120]
[356477436,1742506307432,-387.69,0.0005041,120]
[356477437,1742506307440,-500.0,0.0005041,120]
[356477438,1742506307450,-500.0,0.0005041,120]
[356477439,1742506307460,-2426.87,0.0005041,120]
[356477440,1742506307469,-500.0,0.0005041,120]
[356477441,1742506307478,-800.0,0.0005041,120]
[356477442,1742506307488,-214.05,0.0005041,120]
[356477443,1742506307497,-500.0,0.0005041,120]
[356477444,1742506307506,-500.0,0.0005041,120]
[356477445,1742506307515,-707.59,0.0005041,120]
[356477446,1742506307524,-1015.13,0.00050429,2]
[356477447,1742506307533,-721.82290581,0.000505,120]
[356477448,1742506307543,-834.78,0.000506,14]
[356477449,1742506307552,-280.9,0.00050684,7]
[356477450,1742506307560,-1249.38,0.00050684,120]
[356477451,1742506307570,-704.1,0.00050684,120]
[356477452,1742506307579,-500.0,0.00050684,120]
[356477453,1742506307588,-239.22942075,0.00050684,120]
[356477454,1742506307597,-2093.7,0.00050684,120]
[356477455,1742506307606,-1294.52,0.00050684,120]
[356477456,1742506307616,-805.3,0.00050684,120]
[356477457,1742506307625,-1740.46,0.00050684,120]
[356477458,1742506307634,-1204.72,0.00050684,120]
[356477459,1742506307644,-1605.43,0.00050684,120]
[356477460,1742506307653,-2366.34,0.00050684,120]
[356477461,1742506307662,-2058.24,0.00050684,120]
[356477462,1742506307672,-387.95167054,0.00050684,120]
[356477463,1742506307681,-1347.38,0.00050684,120]
[356477464,1742506307691,-1899.58,0.00050684,120]
[356477465,1742506307701,-1574.01,0.00050684,120]
[356477466,1742506307710,-3000.0,0.00050684,120]
[356477467,1742506307719,-2599.75,0.00050684,120]
[356477468,1742506307728,-1311.47,0.00050684,120]
[356477469,1742506307738,-1183.6,0.00050684,120]
[356477470,1742506307747,-1215.73,0.00050684,2]
[356477471,1742506307756,-642.45,0.00050684,7]
[356477472,1742506307766,-300.97255558,0.00050684,120]
[356477473,1742506307776,-579.59,0.00050684,120]
[356477474,1742506307785,-687.5,0.00050684,120]
[356477475,1742506307795,-500.0,0.00050684,120]
[356477476,1742506307804,-571.12,0.00050684,120]
[356477477,1742506307813,-395.88,0.00050684,120]
[356477478,1742506307822,-2414.38,0.00050684,120]
[356477479,1742506307831,-500.0,0.00050684,120]
[356477480,1742506307840,-500.0,0.00050684,120]
[356477481,1742506307850,-711.07,0.00050684,120]
[356477482,1742506307858,-500.0,0.00050684,120]
[356477483,1742506307867,-2861.11,0.00050684,120]
[356477484,1742506307876,-2613.79,0.00050684,120]
[356477485,1742506307885,-500.0,0.00050684,120]
[356477486,1742506307893,-1352.41,0.00050684,2]
[356477487,1742506307903,-500.0,0.00050684,120]
[356477488,1742506307912,-500.0,0.00050684,7]
[356477489,1742506307922,-2727.58,0.00050684,120]
[356477490,1742506307930,-554.02,0.00050684,120]
[356477491,1742506307940,-500.0,0.00050684,10]
[356477492,1742506307950,-2523.63,0.00050684,120]
[356477493,1742506307963,-209.56,0.00050684,120]
[356477494,1742506307973,-198.17,0.00050684,120]
[356477495,1742506307982,-500.0,0.00050684,120]
[356477496,1742506307992,-500.0,0.00050684,120]
[356477497,1742506308002,-788.19,0.00050684,120]
[356477498,1742506308012,-793.78,0.00050684,120]
[356477499,1742506308022,-2731.28,0.00050684,120]
[356477500,1742506308031,-500.0,0.00050684,120]
[356477501,1742506308041,-281.28747222,0.00050684,120]
[356477502,1742506308051,-500.0,0.00050684,120]
[356477503,1742506308060,-500.0,0.00050684,120]
[356477504,1742506308069,-500.0,0.00050684,120]
[356477505,1742506308079,-1903.57,0.00050684,120]
[356477506,1742506308089,-500.0,0.00050684,120]
[356477507,1742506308099,-500.0,0.00050684,120]
[356477508,1742506308108,-1749.23,0.00050684,120]
[356477509,1742506308117,-2471.83,0.00050684,120]
[356477510,1742506308127,-500.0,0.00050684,120]
[356477511,1742506308136,-500.0,0.00050684,120]
[356477512,1742506308146,-500.0,0.00050684,120]
[356477513,1742506308155,-500.0,0.00050684,120]
[356477514,1742506308165,-1951.54,0.00050684,120]
[356477515,1742506308175,-584.57,0.00050684,120]
[356477516,1742506308184,-352.91,0.00050684,120]
[356477517,1742506308194,-500.0,0.00050684,120]
[356477518,1742506308204,-500.0,0.00050684,120]
[356477519,1742506308214,-2426.87,0.00050684,120]
[356477520,1742506308224,-330.73401833,0.00050684,120]
[356477521,1742506308234,-500.0,0.00050684,120]
[356477522,1742506308244,-500.0,0.00050684,120]
[356477523,1742506308255,-707.59,0.00050684,120]
[356477524,1742506308267,-150.19,0.00050766,120]
[356477525,1742506308278,-232.90044,0.000509,120]
[356477526,1742506308288,-498.4125723,0.00050956,60]
[356477527,1742506308298,-500.0,0.00050958,120]
[356477528,1742506308307,-280.9,0.00050958,7]
[356477529,1742506308316,-1249.38,0.00050958,120]
[356477530,1742506308326,-704.1,0.00050958,120]
[356477531,1742506308335,-500.0,0.00050958,120]
[356477532,1742506308344,-2093.7,0.00050958,120]
[356477533,1742506308354,-1294.52,0.00050958,120]
[356477534,1742506308363,-805.3,0.00050958,120]
[356477535,1742506308373,-1740.46,0.00050958,120]
[356477536,1742506308382,-1204.72,0.00050958,120]
[356477537,1742506308392,-1605.43,0.00050958,120]
[356477538,1742506308401,-2366.34,0.00050958,120]
[356477539,1742506308410,-2058.24,0.00050958,120]
[356477540,1742506308419,-1347.38,0.00050958,120]
[356477541,1742506308430,-1899.58,0.00050958,120]
[356477542,1742506308439,-1574.01,0.00050958,120]
[356477543,1742506308448,-3000.0,0.00050958,120]
[356477544,1742506308458,-2599.75,0.00050958,120]
[356477545,1742506308468,-1311.47,0.00050958,120]
[356477546,1742506308477,-1183.6,0.00050958,120]
[356477547,1742506308486,-1215.73,0.00050958,2]
[356477548,1742506308496,-642.45,0.00050958,7]
[356477549,1742506308506,-579.59,0.00050958,120]
[356477550,1742506308516,-687.5,0.00050958,120]
[356477551,1742506308526,-500.0,0.00050958,120]
[356477552,1742506308535,-2414.38,0.00050958,120]
[356477553,1742506308545,-284.54568043,0.00050958,120]
[356477554,1742506308554,-500.0,0.00050958,120]
[356477555,1742506308564,-711.07,0.00050958,120]
[356477556,1742506308574,-500.0,0.00050958,120]
[356477557,1742506308584,-2861.11,0.00050958,120]
[356477558,1742506308594,-2613.79,0.00050958,120]
[356477559,1742506308605,-500.0,0.00050958,120]
[356477560,1742506308614,-1352.41,0.00050958,2]
[356477561,1742506308624,-500.0,0.00050958,120]
[356477562,1742506308634,-500.0,0.00050958,7]
[356477563,1742506308644,-2727.58,0.00050958,120]
[356477564,1742506308653,-554.02,0.00050958,120]
[356477565,1742506308663,-500.0,0.00050958,10]
[356477566,1742506308673,-2523.63,0.00050958,120]
[356477567,1742506308682,-157.67499667,0.00050958,120]
[356477568,1742506308692,-500.0,0.00050958,120]
[356477569,1742506308702,-788.19,0.00050958,120]
[356477570,1742506308711,-793.78,0.00050958,120]
[356477571,1742506308721,-2731.28,0.00050958,120]
[356477572,1742506308730,-500.0,0.00050958,120]
[356477573,1742506308740,-500.0,0.00050958,120]
[356477574,1742506308750,-500.0,0.00050958,120]
[356477575,1742506308759,-500.0,0.00050958,120]
[356477576,1742506308769,-1903.57,0.00050958,120]
[356477577,1742506308779,-500.0,0.00050958,120]
[356477578,1742506308789,-500.0,0.00050958,120]
[356477579,1742506308799,-1749.23,0.00050958,120]
[356477580,1742506308808,-2471.83,0.00050958,120]
[356477581,1742506308817,-500.0,0.00050958,120]
[356477582,1742506308827,-260.65973703,0.00050958,120]
[356477583,1742506308836,-500.0,0.00050958,120]
[356477584,1742506308845,-500.0,0.00050958,120]
[356477585,1742506308854,-1951.54,0.00050958,120]
[356477586,1742506308864,-584.57,0.00050958,120]
[356477587,1742506308873,-500.0,0.00050958,120]
[356477588,1742506308883,-500.0,0.00050958,120]
[356477589,1742506308892,-2426.87,0.00050958,120]
[356477590,1742506308901,-800.0,0.00050958,120]
[356477591,1742506308911,-500.0,0.00050958,120]
[356477592,1742506308920,-366.14023967,0.00050958,120]
[356477593,1742506308930,-707.59,0.00050958,120]
[356477594,1742506308940,-1000.0,0.0005097,7]
[356477595,1742506308949,-500.0,0.0005097,7]
[356477596,1742506308962,-1000.0,0.00051,45]
[356477597,1742506308972,-1000.0,0.00051,2]
[356477598,1742506308981,-368.0,0.00051,30]
[356477599,1742506308991,-378.0,0.00051,30]
[356477600,1742506309002,-599.0,0.00051,30]
[356477601,1742506309011,-280.9,0.00051232,7]
[356477602,1742506309021,-1249.38,0.00051232,120]
[356477603,1742506309031,-704.1,0.00051232,120]
[356477604,1742506309042,-500.0,0.00051232,120]
[356477605,1742506309052,-2093.7,0.00051232,120]
[356477606,1742506309064,-1294.52,0.00051232,120]
[356477607,1742506309075,-805.3,0.00051232,120]
[356477608,1742506309086,-1740.46,0.00051232,120]
[356477609,1742506309265,-1204.72,0.00051232,120]
[356477610,1742506309274,-1605.43,0.00051232,120]
[356477611,1742506309284,-2366.34,0.00051232,120]
[356477612,1742506309294,-2058.24,0.00051232,120]
[356477613,1742506309304,-1347.38,0.00051232,120]
[356477614,1742506309314,-1899.58,0.00051232,120]
[356477615,1742506309324,-1574.01,0.00051232,120]
[356477616,1742506309334,-3000.0,0.00051232,120]
[356477617,1742506309344,-2599.75,0.00051232,120]
[356477618,1742506309353,-1311.47,0.00051232,120]
[356477619,1742506309363,-1183.6,0.00051232,120]
[356477620,1742506309372,-1215.73,0.00051232,2]
[356477621,1742506309383,-642.45,0.00051232,7]
[356477622,1742506309393,-579.59,0.00051232,120]
[356477623,1742506309402,-687.5,0.00051232,120]
[356477624,1742506309412,-260.01,0.00051232,120]
[356477625,1742506309422,-2414.38,0.00051232,120]
[356477626,1742506309432,-500.0,0.00051232,120]
[356477627,1742506309442,-711.07,0.00051232,120]
[356477628,1742506309452,-500.0,0.00051232,120]
[356477629,1742506309462,-2861.11,0.00051232,120]
[356477630,1742506309472,-2613.79,0.00051232,120]
[356477631,1742506309482,-480.57,0.00051232,120]
[356477632,1742506309491,-1352.41,0.00051232,2]
[356477633,1742506309501,-500.0,0.00051232,120]
[356477634,1742506309512,-481.32,0.00051232,7]
[356477635,1742506309522,-2727.58,0.00051232,120]
[356477636,1742506309531,-554.02,0.00051232,120]
[356477637,1742506309540,-500.0,0.00051232,10]
[356477638,1742506309550,-2523.63,0.00051232,120]
[356477639,1742506309560,-500.0,0.00051232,120]
[356477640,1742506309570,-788.19,0.00051232,120]
[356477641,1742506309580,-793.78,0.00051232,120]
[356477642,1742506309590,-2731.28,0.00051232,120]
[356477643,1742506309600,-500.0,0.00051232,120]
[356477644,1742506309609,-500.0,0.00051232,120]
[356477645,1742506309619,-500.0,0.00051232,120]
[356477646,1742506309629,-500.0,0.00051232,120]
[356477647,1742506309639,-1903.57,0.00051232,120]
[356477648,1742506309650,-500.0,0.00051232,120]
[356477649,1742506309659,-350.10662993,0.00051232,120]
[356477650,1742506309669,-1749.23,0.00051232,120]
[356477651,1742506309679,-2471.83,0.00051232,120]
[356477652,1742506309689,-500.0,0.00051232,120]
[356477653,1742506309700,-278.4,0.00051232,120]
[356477654,1742506309709,-500.0,0.00051232,120]
[356477655,1742506309719,-1951.54,0.00051232,120]
[356477656,1742506309729,-584.57,0.00051232,120]
[356477657,1742506309738,-500.0,0.00051232,120]
[356477658,1742506309749,-500.0,0.00051232,120]
[356477659,1742506309758,-2426.87,0.00051232,120]
[356477660,1742506309768,-500.0,0.00051232,120]
[356477661,1742506309778,-707.59,0.00051232,120]
[356477662,1742506309787,-150.0,0.00051337,30]
[356477663,1742506309796,-150.0,0.00051337,30]
[356477664,1742506309805,-150.0,0.00051337,30]
[356477665,1742506309814,-150.0,0.00051337,30]
[356477666,1742506309824,-150.0,0.00051337,30]
[356477667,1742506309833,-150.0,0.00051337,30]
[356477668,1742506309843,-150.0,0.00051337,30]
[356477669,1742506309852,-174.93,0.00051337,30]
[356477670,1742506309862,-198.0,0.000514,120]
[356477671,1742506309871,-500.0,0.00051506,120]
[356477672,1742506309881,-280.9,0.00051506,7]
[356477673,1742506309890,-1249.38,0.00051506,120]
[356477674,1742506309900,-704.1,0.00051506,120]
[356477675,1742506309909,-500.0,0.00051506,120]
[356477676,1742506309919,-2093.7,0.00051506,120]
[356477677,1742506309928,-1294.52,0.00051506,120]
[356477678,1742506309938,-805.3,0.00051506,120]
[356477679,1742506309947,-1740.46,0.00051506,120]
[356477680,1742506309959,-1204.72,0.00051506,120]
[356477681,1742506309969,-1605.43,0.00051506,120]
[356477682,1742506309979,-2366.34,0.00051506,120]
[356477683,1742506309988,-2058.24,0.00051506,120]
[356477684,1742506309999,-1347.38,0.00051506,120]
[356477685,1742506310008,-1899.58,0.00051506,120]
[356477686,1742506310017,-1574.01,0.00051506,120]
[356477687,1742506310027,-3000.0,0.00051506,120]
[356477688,1742506310038,-2599.75,0.00051506,120]
[356477689,1742506310047,-1311.47,0.00051506,120]
[356477690,1742506310056,-1183.6,0.00051506,120]
[356477691,1742506310065,-1215.73,0.00051506,2]
[356477692,1742506310074,-642.45,0.00051506,7]
[356477693,1742506310084,-579.59,0.00051506,120]
[356477694,1742506310094,-687.5,0.00051506,120]
[356477695,1742506310103,-2414.38,0.00051506,120]
[356477696,1742506310112,-500.0,0.00051506,120]
[356477697,1742506310122,-711.07,0.00051506,120]
[356477698,1742506310131,-500.0,0.00051506,120]
[356477699,1742506310140,-2861.11,0.00051506,120]
[356477700,1742506310150,-2613.79,0.00051506,120]
[356477701,1742506310159,-1352.41,0.00051506,2]
[356477702,1742506310168,-500.0,0.00051506,120]
[356477703,1742506310178,-2727.58,0.00051506,120]
[356477704,1742506310187,-554.02,0.00051506,120]
[356477705,1742506310196,-500.0,0.00051506,10]
[356477706,1742506310206,-2523.63,0.00051506,120]
[356477707,1742506310215,-272.57,0.00051506,120]
[356477708,1742506310224,-788.19,0.00051506,120]
[356477709,1742506310233,-793.78,0.00051506,120]
[356477710,1742506310243,-2731.28,0.00051506,120]
[356477711,1742506310252,-430.64,0.00051506,120]
[356477712,1742506310261,-500.0,0.00051506,120]
[356477713,1742506310270,-500.0,0.00051506,120]
[356477714,1742506310279,-500.0,0.00051506,120]
[356477715,1742506310289,-1903.57,0.00051506,120]
[356477716,1742506310298,-500.0,0.00051506,120]
[356477717,1742506310307,-1749.23,0.00051506,120]
[356477718,1742506310316,-2471.83,0.00051506,120]
[356477719,1742506310325,-500.0,0.00051506,120]
[356477720,1742506310335,-500.0,0.00051506,120]
[356477721,1742506310344,-1951.54,0.00051506,120]
[356477722,1742506310353,-584.57,0.00051506,120]
[356477723,1742506310362,-371.98,0.00051506,120]
[356477724,1742506310372,-2426.87,0.00051506,120]
[356477725,1742506310381,-500.0,0.00051506,120]
[356477726,1742506310391,-800.0,0.00051506,120]
[356477727,1742506310400,-500.0,0.00051506,120]
[356477728,1742506310409,-707.59,0.00051506,120]
[356477729,1742506310419,-35030.47296244,0.0005168,2]
[356477730,1742506310428,-280.9,0.0005178,7]
[356477731,1742506310437,-1249.38,0.0005178,120]
[356477732,1742506310446,-704.1,0.0005178,120]
[356477733,1742506310455,-500.0,0.0005178,120]
[356477734,1742506310464,-2093.7,0.0005178,120]
[356477735,1742506310473,-1294.52,0.0005178,120]
[356477736,1742506310482,-805.3,0.0005178,120]
[356477737,1742506310491,-1740.46,0.0005178,120]
[356477738,1742506310500,-1204.72,0.0005178,120]
[356477739,1742506310509,-1605.43,0.0005178,120]
[356477740,1742506310518,-2366.34,0.0005178,120]
[356477741,1742506310527,-2058.24,0.0005178,120]
[356477742,1742506310536,-1347.38,0.0005178,120]
[356477743,1742506310546,-1899.58,0.0005178,120]
[356477744,1742506310555,-1574.01,0.0005178,120]
[356477745,1742506310565,-3000.0,0.0005178,120]
[356477746,1742506310574,-2599.75,0.0005178,120]
[356477747,1742506310583,-1311.47,0.0005178,120]
[356477748,1742506310593,-1183.6,0.0005178,120]
[356477749,1742506310602,-1215.73,0.0005178,2]
[356477750,1742506310612,-642.45,0.0005178,7]
[356477751,1742506310622,-579.59,0.0005178,120]
[356477752,1742506310631,-687.5,0.0005178,120]
[356477753,1742506310641,-2414.38,0.0005178,120]
[356477754,1742506310650,-500.0,0.0005178,120]
[356477755,1742506310660,-711.07,0.0005178,120]
[356477756,1742506310669,-500.0,0.0005178,120]